bitfinex/quotes_SOLUSD_20240705
["timestamp","ask_amount","ask_price","bid_price","bid_amount"]
[1720138086352,7.8418,127.53,127.51,0.1]
[1720138086549,7.8419,127.52,127.51,0.1]
[1720138086951,52.8419,127.52,127.51,0.1]
[1720138088859,7.848,127.42,127.41,0.1]
[1720138089255,7.8468,127.44,127.41,0.1]
[1720138089456,100.0,127.46,127.41,0.1]
[1720138089655,45.0,127.45,127.41,0.1]
[1720138090253,38.79,127.48,127.41,0.1]
[1720138090464,100.0,127.5,127.41,0.1]
[1720138090677,7.8425,127.51,127.41,0.1]
[1720138090879,100.0,127.5,127.41,19.7216]
[1720138091060,77.9875,127.56,127.41,0.1]
[1720138091061,100.0,127.48,127.41,0.1]
[1720138091267,7.8469,127.44,127.41,0.1]
[1720138091469,7.848,127.42,127.41,0.1]
[1720138091695,100.0,127.47,127.41,0.1]
[1720138091987,138.79,127.48,127.41,0.1]
[1720138092291,7.8461,127.46,127.41,0.1]
[1720138092484,7.8458,127.46,127.41,0.1]
[1720138092694,52.8462,127.45,127.41,0.1]
[1720138092993,45.0,127.45,127.41,0.1]
[1720138093160,7.848,127.42,127.41,0.1]
[1720138093364,52.848,127.42,127.41,0.1]
[1720138093984,45.0,127.42,127.41,0.1]
[1720138094160,100.0,127.47,127.41,0.1]
[1720138094355,100.0,127.43,127.41,0.1]
[1720138094561,52.848,127.42,127.41,0.1]
[1720138094905,45.0,127.42,127.41,0.1]
[1720138095088,52.848,127.42,127.41,0.1]
[1720138095382,7.8463,127.45,127.41,0.1]
[1720138095555,100.0,127.51,127.42,7.848]
[1720138095763,100.0,127.51,127.41,0.1]
[1720138095764,7.8439,127.49,127.41,0.1]
[1720138095988,100.0,127.49,127.41,0.1]
[1720138096187,100.0,127.49,127.41,7.9485]
[1720138096360,7.843,127.51,127.42,19.6195]
[1720138096684,7.8434,127.5,127.42,19.6195]
[1720138097070,7.845,127.47,127.41,0.1]
[1720138097270,100.0,127.48,127.41,0.1]
[1720138097473,100.0,127.44,127.41,0.1]
[1720138097673,7.848,127.42,127.41,0.1]
[1720138097994,107.848,127.42,127.41,0.1]
[1720138098196,152.848,127.42,127.41,0.1]
[1720138098492,100.0,127.36,127.31,0.1]
[1720138098688,100.0,127.34,127.31,0.1]
[1720138098986,107.8542,127.32,127.31,0.1]
[1720138099592,152.8542,127.32,127.31,0.1]
[1720138100090,52.8542,127.32,127.31,0.1]
[1720138100288,152.8542,127.32,127.31,0.1]
[1720138100496,7.8536,127.33,127.31,0.1]
[1720138100667,100.0,127.34,127.31,0.1]
[1720138100867,7.8542,127.32,127.31,0.1]
[1720138101177,7.8531,127.34,127.31,0.1]
[1720138101379,45.0,127.33,127.31,0.1]
[1720138101776,18.65818496,127.42,127.31,0.1]
[1720138101990,2.78377954,127.42,127.31,0.1]
[1720138102169,2.78377954,127.42,127.36,7.8512]
[1720138102373,2.78377954,127.42,127.33,19.6334]
[1720138102567,2.78377954,127.42,127.38,7.8504]
[1720138102979,19.6023,127.54,127.34,60.5376]
[1720138103165,13.232,127.57,127.41,19.6207]
[1720138103166,100.0,127.53,127.41,19.6207]
[1720138103370,100.0,127.51,127.41,19.6207]
[1720138103597,100.0,127.52,127.41,19.6207]
[1720138103788,7.8444,127.48,127.39,7.8498]
[1720138103986,100.0,127.5,127.4,7.8492]
[1720138104192,100.0,127.5,127.38,27.4754]
[1720138104389,7.8461,127.46,127.38,19.6254]
[1720138104585,7.845,127.47,127.38,27.4757]
[1720138104785,100.0,127.5,127.38,27.4758]
[1720138104968,138.79,127.52,127.4,19.6221]
[1720138105175,31.431794,127.54,127.34,99.3276]
[1720138105472,100.0,127.54,127.44,27.463]
[1720138105690,7.8425,127.51,127.42,7.8475]
[1720138105894,100.0,127.5,127.35,20.0]
[1720138106098,7.845,127.47,127.38,7.8503]
[1720138106278,100.0,127.5,127.37,19.6265]
[1720138106481,7.8445,127.48,127.39,7.8494]
[1720138106992,100.0,127.5,127.41,7.8486]
[1720138107171,45.0,127.49,127.41,7.8486]
[1720138107372,7.8426,127.51,127.42,7.8478]
[1720138107674,7.8432,127.5,127.41,7.8486]
[1720138107892,100.0,127.52,127.36,39.2585]
[1720138108199,7.8463,127.45,127.37,7.8511]
[1720138108497,100.0,127.48,127.34,13.2176]
[1720138108498,100.0,127.46,127.34,13.2176]
[1720138108793,7.8487,127.41,127.32,7.8541]
[1720138108980,7.8492,127.41,127.33,7.8534]
[1720138109181,100.0,127.42,127.31,0.1]
[1720138109384,7.85,127.39,127.31,7.9547]
[1720138109590,45.0,127.41,127.31,0.1]
[1720138110196,38.79,127.44,127.32,47.32]
[1720138110197,7.847,127.44,127.32,47.32]
[1720138110396,145.0,127.43,127.32,55.1736]
[1720138110570,7.8491,127.41,127.33,7.8535]
[1720138110976,107.8464,127.45,127.33,47.32]
[1720138111196,7.8444,127.48,127.4,7.8492]
[1720138111385,100.0,127.51,127.41,7.8484]
[1720138111622,100.0,127.49,127.35,47.32]
[1720138111899,100.0,127.49,127.36,47.32]
[1720138112207,7.8469,127.44,127.36,19.6283]
[1720138112381,100.0,127.45,127.34,55.1729]
[1720138112793,7.8485,127.42,127.33,19.6329]
[1720138112985,46.6348,127.48,127.33,39.2657]
[1720138113308,100.0,127.47,127.34,47.32]
[1720138113600,100.0,127.47,127.37,19.6269]
[1720138113601,7.8469,127.44,127.37,19.6269]
[1720138113796,7.846,127.46,127.37,27.4778]
[1720138114001,107.8451,127.47,127.37,19.6269]
[1720138114304,7.8457,127.46,127.38,7.8503]
[1720138114682,107.8451,127.47,127.38,7.8503]
[1720138114880,7.843,127.51,127.42,7.8476]
[1720138115086,100.0,127.5,127.41,7.8486]
[1720138115307,7.8439,127.49,127.4,27.4721]
[1720138115598,7.8444,127.48,127.4,27.4721]
[1720138115808,100.0,127.46,127.3,39.2771]
[1720138116005,100.0,127.46,127.38,19.6257]
[1720138116201,7.8468,127.44,127.36,7.8515]
[1720138116398,100.0,127.44,127.3,39.2771]
[1720138116619,45.0,127.43,127.3,39.2771]
[1720138116791,45.0,127.43,127.37,7.8505]
[1720138116983,45.0,127.43,127.36,19.6289]
[1720138117186,100.0,127.42,127.33,19.6331]
[1720138117478,45.0,127.41,127.31,47.42]
[1720138117680,45.0,127.41,127.32,19.6348]
[1720138117903,7.8516,127.37,127.31,0.1]
[1720138118409,45.0,127.36,127.31,0.1]
[1720138118783,52.8523,127.36,127.31,0.1]
[1720138119182,7.8524,127.35,127.31,0.1]
[1720138119389,45.0,127.36,127.31,0.1]
[1720138119390,107.8541,127.33,127.31,0.1]
[1720138119691,52.8542,127.32,127.31,0.1]
[1720138120808,45.0,127.32,127.31,0.1]
[1720138121011,107.8526,127.35,127.31,0.1]
[1720138121221,100.0,127.35,127.31,0.1]
[1720138121507,100.0,127.39,127.31,7.9546]
[1720138121707,7.8505,127.39,127.31,0.1]
[1720138121915,100.0,127.39,127.31,7.9546]
[1720138122120,107.8501,127.39,127.31,0.1]
[1720138122285,7.8506,127.38,127.31,0.1]
[1720138123026,100.0,127.43,127.32,19.6347]
[1720138123190,100.0,127.4,127.32,27.4888]
[1720138123385,100.0,127.4,127.33,7.8535]
[1720138123615,7.8474,127.43,127.34,27.4844]
[1720138123816,107.8481,127.42,127.34,27.4844]
[1720138124128,7.8506,127.38,127.31,0.1]
[1720138124416,7.8525,127.35,127.31,0.1]
[1720138124616,100.0,127.38,127.31,0.1]
[1720138125099,7.8513,127.37,127.31,0.1]
[1720138125297,45.0,127.37,127.31,0.1]
[1720138125512,45.0,127.37,127.31,7.9547]
[1720138125820,107.8497,127.4,127.31,27.5911]
[1720138126000,52.85,127.39,127.31,19.7365]
[1720138126396,7.8505,127.38,127.31,19.7365]
[1720138126601,45.0,127.37,127.31,0.1]
[1720138126790,7.8518,127.36,127.31,0.1]
[1720138127197,45.0,127.37,127.31,0.1]
[1720138127198,100.0,127.34,127.31,0.1]
[1720138127700,107.8542,127.32,127.31,0.1]
[1720138128226,100.0,127.27,127.25,0.04656524]
[1720138128426,7.8579,127.26,127.25,0.04656524]
[1720138128894,52.8579,127.26,127.25,0.04656524]
[1720138129516,91.6479,127.26,127.25,6.524e-05]
[1720138129719,107.8603,127.22,127.21,0.1]
[1720138129921,119.6422,127.28,127.21,0.1]
[1720138130221,7.8585,127.25,127.21,0.1]
[1720138130434,107.8584,127.26,127.21,0.1]
[1720138130613,100.0,127.26,127.21,0.1]
[1720138131730,45.0,127.25,127.21,0.1]
[1720138132309,107.8569,127.28,127.21,0.1]
[1720138133143,100.0,127.34,127.21,47.42]
[1720138133311,107.8531,127.34,127.23,39.297]
[1720138133511,107.8531,127.34,127.25,7.858]
[1720138133829,107.8531,127.34,127.24,66.9668]
[1720138133830,100.0,127.34,127.24,66.9668]
[1720138134035,100.0,127.34,127.27,7.8572]
[1720138134633,107.8531,127.34,127.26,19.6442]
[1720138134840,7.8543,127.32,127.24,7.8589]
[1720138135141,100.0,127.32,127.23,7.8593]
[1720138135313,100.0,127.3,127.21,0.1]
[1720138135716,52.8564,127.29,127.21,0.1]
[1720138135914,100.0,127.28,127.21,0.1]
[1720138136133,7.8579,127.26,127.21,0.1]
[1720138136548,45.0,127.25,127.21,0.1]
[1720138136845,38.79,127.3,127.21,0.1]
[1720138137012,100.0,127.31,127.21,0.1]
[1720138137335,107.8549,127.31,127.22,19.6504]
[1720138137631,107.8549,127.31,127.23,7.8593]
[1720138138008,7.8543,127.32,127.24,7.8591]
[1720138138220,7.8555,127.3,127.22,19.6504]
[1720138138415,100.0,127.31,127.22,19.6504]
[1720138138416,7.856,127.29,127.22,19.6504]
[1720138138733,100.0,127.3,127.21,0.1]
[1720138138909,7.858,127.26,127.21,0.1]
[1720138139234,100.0,127.28,127.21,0.1]
[1720138139533,100.0,127.26,127.21,0.1]
[1720138139740,7.8603,127.22,127.21,0.1]
[1720138139917,107.8603,127.22,127.21,0.1]
[1720138140113,152.8603,127.22,127.21,0.1]
[1720138140317,7.8641,127.16,127.11,0.1]
[1720138140515,100.0,127.16,127.11,0.1]
[1720138140812,38.79,127.19,127.11,0.1]
[1720138140813,7.8636,127.17,127.11,0.1]
[1720138141028,100.0,127.15,127.11,0.1]
[1720138141233,7.8651,127.15,127.11,0.1]
[1720138141415,100.0,127.15,127.11,0.1]
[1720138141650,7.8665,127.12,127.11,0.1]
[1720138142134,52.8665,127.12,127.11,0.1]
[1720138143343,7.8706,127.06,126.97,7.8755]
[1720138143652,107.8685,127.09,126.96,31.3651]
[1720138143814,47.78377954,127.12,126.96,78.6851]
[1720138144012,100.0,127.16,126.96,93.6851]
[1720138144313,7.8646,127.16,127.07,7.8691]
[1720138144532,100.0,127.17,127.06,19.6754]
[1720138144734,100.0,127.25,127.06,13.2041]
[1720138144940,107.8599,127.23,127.14,19.6624]
[1720138145110,7.8587,127.25,127.16,7.8638]
[1720138145313,7.8585,127.25,127.17,7.8632]
[1720138145551,100.0,127.29,127.16,7.864]
[1720138145713,100.0,127.25,127.14,27.5272]
[1720138145916,7.8592,127.24,127.14,19.6624]
[1720138146128,100.0,127.27,127.16,19.6589]
[1720138146342,107.8585,127.25,127.16,19.6589]
[1720138146536,107.8586,127.25,127.16,27.5229]
[1720138146717,7.8566,127.29,127.18,19.6563]
[1720138146920,7.8566,127.29,127.12,62.32]
[1720138146921,100.0,127.33,127.14,15.0]
[1720138147123,7.8554,127.3,127.21,27.5128]
[1720138147635,146.6434,127.34,127.23,19.6482]
[1720138147815,100.0,127.36,127.23,19.6482]
[1720138148015,7.8523,127.36,127.27,7.857]
[1720138148222,100.0,127.35,127.25,19.645]
[1720138148445,100.0,127.33,127.23,7.8592]
[1720138148651,100.0,127.33,127.22,27.5109]
[1720138148826,100.0,127.33,127.25,19.6463]
[1720138149028,138.79,127.38,127.21,31.677]
[1720138149233,107.8523,127.36,127.26,7.8573]
[1720138149442,7.8525,127.35,127.26,7.8573]
[1720138149643,7.8543,127.32,127.22,19.6496]
[1720138149955,107.8536,127.33,127.24,7.859]
[1720138150323,100.0,127.33,127.21,31.677]
[1720138150721,53.79,127.38,127.17,12.2203]
[1720138150722,100.0,127.28,127.17,12.2203]
[1720138151137,7.8587,127.25,127.16,7.864]
[1720138151321,100.0,127.26,127.15,19.6612]
[1720138151519,45.0,127.25,127.15,19.6612]
[1720138151721,45.0,127.25,127.12,19.6657]
[1720138151722,100.0,127.21,127.12,19.6657]
[1720138151925,45.0,127.25,127.09,19.6705]
[1720138151926,100.0,127.19,127.09,19.6705]
[1720138152123,7.8637,127.17,127.09,19.6705]
[1720138152430,107.8635,127.17,127.08,7.8688]
[1720138152631,7.8643,127.16,127.07,7.8696]
[1720138152943,100.0,127.17,127.08,7.8689]
[1720138152944,107.8636,127.17,127.08,7.8689]
[1720138153146,100.0,127.15,127.03,19.6796]
[1720138153445,100.0,127.16,127.04,66.9982]
[1720138153631,45.0,127.14,127.07,7.8695]
[1720138153826,7.8636,127.17,127.08,7.8689]
[1720138154037,145.0,127.16,127.08,7.8689]
[1720138154425,7.866,127.13,127.06,19.6748]
[1720138154624,100.0,127.12,127.04,7.8712]
[1720138154830,145.0,127.12,127.03,27.5522]
[1720138155146,152.8666,127.12,127.03,27.5523]
[1720138155350,100.0,127.1,127.03,19.6803]
[1720138155641,100.0,127.1,127.0,19.6847]
[1720138155852,107.8678,127.1,127.01,7.9729]
[1720138156026,7.8685,127.09,127.01,7.9729]
[1720138156346,100.0,127.08,127.01,0.1]
[1720138156556,107.8708,127.06,127.01,0.1]
[1720138156927,7.8722,127.03,127.01,0.1]
[1720138157149,107.8715,127.04,127.01,0.1]
[1720138157330,7.8727,127.02,127.01,0.1]
[1720138157650,107.8727,127.02,127.01,0.1]
[1720138157830,100.0,126.98,126.87,19.75130471]
[1720138158149,100.0,126.98,126.89,19.7008]
[1720138158352,100.0,127.01,126.87,0.04670471]
[1720138158558,7.8754,126.98,126.87,0.04670471]
[1720138158731,100.0,126.99,126.87,0.04670471]
[1720138159056,138.79,127.03,126.91,19.7987]
[1720138159346,100.0,127.09,126.91,47.42]
[1720138159557,100.0,127.11,127.01,19.6824]
[1720138159761,100.0,127.11,126.93,47.32]
[1720138159762,7.98916683,127.08,126.97,19.6881]
[1720138159928,100.0,127.08,126.98,7.8752]
[1720138160133,100.0,127.08,126.99,19.685]
[1720138160442,38.79,127.12,127.02,19.6809]
[1720138160634,100.0,127.11,127.02,19.6809]
[1720138160961,31.520385,127.18,127.06,12.1402]
[1720138161126,0.1,127.29,127.16,19.6599]
[1720138161456,0.1,127.29,127.17,7.8633]
[1720138161457,7.858,127.26,127.17,7.8633]
[1720138161757,100.0,127.21,127.1,19.6685]
[1720138162053,7.8675,127.11,127.02,19.6808]
[1720138162354,38.79,127.21,127.0,30.2898]
[1720138162355,100.0,127.1,127.0,30.2898]
[1720138162524,38.79,127.13,126.99,12.1402]
[1720138162525,100.0,127.08,126.99,12.1402]
[1720138162726,100.0,127.15,126.99,59.4602]
[1720138162942,100.0,127.15,127.09,7.8682]
[1720138163126,100.0,127.15,126.99,12.1402]
[1720138163324,7.8666,127.12,127.02,7.8725]
[1720138163531,138.79,127.19,127.0,47.32]
[1720138163746,100.0,127.17,127.09,19.6704]
[1720138164048,7.8638,127.17,127.05,7.8703]
[1720138164253,100.0,127.18,127.07,19.6728]
[1720138164450,100.0,127.2,127.11,7.8669]
[1720138164630,12.4154,127.24,127.1,19.6686]
[1720138164832,100.0,127.23,127.13,7.8656]
[1720138165145,100.0,127.23,127.13,19.6636]
[1720138165358,100.0,127.23,127.13,27.529]
[1720138165647,100.0,127.23,127.07,86.6666]
[1720138165648,0.1,127.29,127.2,7.8612]
[1720138165853,100.0,127.27,127.19,19.6549]
[1720138166356,107.8573,127.27,127.19,19.6549]
[1720138166675,0.1,127.29,127.24,7.8591]
[1720138166953,0.1,127.29,127.13,101.11]
[1720138167155,0.1,127.29,127.14,20.0]
[1720138167334,0.1,127.29,127.21,7.8609]
[1720138167523,0.1,127.29,127.2,19.6536]
[1720138167722,0.1,127.29,127.22,7.8601]
[1720138167979,0.1,127.29,127.24,7.8587]
[1720138168484,0.1,127.29,127.23,19.6486]
[1720138168650,0.1,127.29,127.23,27.5082]
[1720138168853,7.9562,127.29,127.2,55.1812]
[1720138169175,0.1,127.29,127.2,7.8611]
[1720138169359,0.1,127.29,127.19,66.9741]
[1720138169556,0.1,127.29,127.21,7.861]
[1720138169758,107.9561,127.29,127.19,27.5159]
[1720138169972,107.9561,127.29,127.19,27.5163]
[1720138170162,0.1,127.29,127.19,66.9741]
[1720138170570,0.1,127.29,127.21,7.8609]
[1720138170893,0.1,127.29,127.22,7.86]
[1720138171190,0.1,127.29,127.25,7.858]
[1720138171353,0.1,127.29,127.25,7.8584]
[1720138171764,0.1,127.29,127.21,66.9721]
[1720138172076,0.1,127.29,127.21,19.6521]
[1720138172377,0.1,127.29,127.2,39.307]
[1720138172581,0.1,127.29,127.23,27.5074]
[1720138172754,0.1,127.29,127.23,19.6481]
[1720138173076,0.1,127.29,127.24,7.859]
[1720138173259,0.1,127.29,127.28,7.8566]
[1720138173465,0.1,127.29,127.26,7.8578]
[1720138173680,0.1,127.29,127.28,7.8566]
[1720138173876,0.1,127.29,127.22,47.32]
[1720138174054,0.1,127.29,127.24,66.9674]
[1720138174557,0.1,127.29,127.24,19.6474]
[1720138174767,7.8593,127.24,127.16,7.864]
[1720138174956,7.858,127.26,127.17,7.8634]
[1720138175174,100.0,127.27,127.15,19.6618]
[1720138175473,100.1,127.29,127.12,51.1889]
[1720138175891,45.0,127.28,127.16,19.6591]
[1720138176058,7.8593,127.24,127.16,19.6591]
[1720138176256,100.0,127.28,127.16,66.9791]
[1720138176474,100.0,127.24,127.12,12.3989]
[1720138176785,45.0,127.27,127.05,15.0]
[1720138176786,100.0,127.21,127.1,19.6689]
[1720138177086,38.79,127.25,127.08,19.6714]
[1720138177087,100.0,127.18,127.08,19.6714]
[1720138177256,107.8629,127.18,127.1,7.8678]
[1720138177586,100.0,127.24,127.07,39.3478]
[1720138177757,112.2786,127.26,127.07,15.0]
[1720138177957,100.0,127.28,127.2,7.8611]
[1720138178277,100.0,127.26,127.16,19.6597]
[1720138178482,7.8574,127.27,127.16,19.6597]
[1720138178661,100.0,127.26,127.19,7.8621]
[1720138179058,7.8604,127.22,127.15,19.6613]
[1720138179356,100.0,127.24,127.14,19.6627]
[1720138179357,107.8593,127.24,127.14,19.6627]
[1720138179555,100.0,127.24,127.17,7.8629]
[1720138179753,100.0,127.24,127.16,19.6594]
[1720138179959,7.8611,127.21,127.13,19.6645]
[1720138180178,7.8627,127.19,127.1,19.6688]
[1720138180368,7.8623,127.19,127.1,19.6688]
[1720138180570,7.8623,127.19,127.09,7.8679]
[1720138180571,7.8653,127.15,127.07,47.32]
[1720138180881,45.0,127.23,127.0,12.7619]
[1720138180882,100.0,127.14,127.0,12.7619]
[1720138181060,100.0,127.11,127.02,7.8725]
[1720138181259,7.8679,127.1,127.02,19.681]
[1720138181696,100.0,127.11,126.99,19.6863]
[1720138181866,107.8695,127.08,127.0,7.8737]
[1720138182063,100.0,127.08,126.96,19.6904]
[1720138182372,7.8729,127.02,126.93,47.32]
[1720138182682,100.0,127.02,126.92,19.696]
[1720138182859,100.0,127.02,126.91,0.1]
[1720138183060,100.0,127.02,126.92,19.6964]
[1720138183470,7.8747,126.99,126.91,0.1]
[1720138183685,7.874,127.0,126.91,7.979]
[1720138183891,107.874,127.0,126.92,7.8788]
[1720138184204,107.874,127.0,126.91,0.1]
[1720138184205,100.0,127.0,126.91,0.1]
[1720138184370,107.8741,127.0,126.91,7.9794]
[1720138184988,100.0,127.02,126.95,7.877]
[1720138185168,138.79,127.04,126.93,19.6949]
[1720138185578,7.8722,127.03,126.94,7.8776]
[1720138185771,7.8727,127.02,126.94,7.8776]
[1720138186190,100.0,127.0,126.91,7.979]
[1720138186371,107.8741,127.0,126.91,7.9795]
[1720138187001,107.8765,126.96,126.91,0.1]
[1720138187186,100.0,126.96,126.91,0.1]
[1720138187390,7.8789,126.92,126.91,0.1]
[1720138187596,7.8783,126.93,126.91,0.1]
[1720138187880,107.8789,126.92,126.91,0.1]
[1720138188276,100.0,126.92,126.91,0.1]
[1720138188870,107.8789,126.92,126.91,0.1]
[1720138189088,100.0,126.92,126.91,0.1]
[1720138189507,107.8789,126.92,126.91,0.1]
[1720138189872,152.8789,126.92,126.91,0.1]
[1720138190291,7.8784,126.93,126.91,0.1]
[1720138190502,100.0,126.99,126.91,0.1]
[1720138190697,100.0,126.97,126.91,0.1]
[1720138190880,107.8759,126.97,126.91,0.1]
[1720138191075,100.0,126.97,126.91,0.1]
[1720138191601,100.0,126.95,126.91,0.1]
[1720138191897,107.8772,126.95,126.91,0.1]
[1720138192106,100.0,126.95,126.91,0.1]
[1720138192310,107.8759,126.97,126.91,0.1]
[1720138192481,107.8764,126.97,126.91,0.1]
[1720138192680,7.8765,126.96,126.91,0.1]
[1720138192893,107.8771,126.95,126.91,0.1]
[1720138193208,100.0,126.95,126.91,0.1]
[1720138193394,100.0,126.92,126.91,0.1]
[1720138194228,107.8789,126.92,126.91,0.1]
[1720138194503,152.8789,126.92,126.91,0.1]
[1720138194711,100.0,126.88,126.87,0.04670471]
[1720138195200,107.8814,126.88,126.87,0.04670471]
[1720138195402,100.0,126.88,126.87,0.04670471]
[1720138195576,107.8814,126.88,126.87,0.04670471]
[1720138195779,107.8814,126.88,126.81,0.1]
[1720138195780,7.8839,126.84,126.81,0.1]
[1720138195999,100.0,126.85,126.81,0.1]
[1720138196000,100.0,126.83,126.81,0.1]
[1720138196278,100.0,126.88,126.81,0.1]
[1720138196596,100.0,126.86,126.81,0.1]
[1720138197104,107.8842,126.84,126.81,0.1]
[1720138197281,100.0,126.84,126.81,0.1]
[1720138197481,107.8851,126.82,126.81,0.1]
[1720138197703,7.8881,126.78,126.75,0.15]
[1720138197907,100.0,126.81,126.75,0.15]
[1720138198113,100.0,126.8,126.75,0.15]
[1720138198492,107.8881,126.78,126.75,0.15]
[1720138198686,19.7141,126.82,126.75,0.15]
[1720138198687,7.887,126.79,126.75,0.15]
[1720138198891,100.0,126.8,126.75,0.15]
[1720138199319,107.8878,126.78,126.75,0.15]
[1720138199505,100.0,126.78,126.75,0.15]
[1720138200319,100.0,126.8,126.75,0.15]
[1720138200495,100.0,126.82,126.75,0.15]
[1720138200694,100.0,126.8,126.75,0.15]
[1720138200897,100.0,126.82,126.75,0.15]
[1720138201307,7.8855,126.82,126.75,0.15]
[1720138201623,100.0,126.84,126.75,0.15]
[1720138201792,100.0,126.85,126.76,19.7209]
[1720138201990,100.0,126.89,126.75,0.15]
[1720138202191,7.879,126.92,126.77,15.0]
[1720138202410,100.0,126.91,126.78,59.4363]
[1720138202805,100.0,126.94,126.82,39.4259]
[1720138203012,100.0,126.94,126.87,7.8817]
[1720138203211,100.0,126.94,126.86,19.706]
[1720138203515,100.0,126.9,126.83,7.8841]
[1720138203710,100.0,126.88,126.78,20.0]
[1720138203911,100.0,126.9,126.81,19.7138]
[1720138204137,100.0,126.92,126.76,82.43]
[1720138204439,100.0,126.96,126.78,62.43]
[1720138204617,100.0,127.01,126.93,7.8782]
[1720138204924,31.554564,127.04,126.85,19.7079]
[1720138204925,100.0,126.98,126.85,19.7079]
[1720138205095,100.0,126.94,126.85,19.7079]
[1720138205294,107.8795,126.92,126.82,19.7128]
[1720138205524,100.0,126.94,126.85,19.7082]
[1720138205728,100.0,126.95,126.79,78.054]
[1720138205931,100.0,126.96,126.9,19.6991]
[1720138206096,7.8763,126.97,126.89,7.8807]
[1720138206293,38.79,127.02,126.86,19.706]
[1720138206294,100.0,126.93,126.86,19.706]
[1720138206499,100.0,126.97,126.8,15.0]
[1720138206722,100.0,126.97,126.9,7.88]
[1720138206926,100.0,127.0,126.94,7.8772]
[1720138207126,100.0,127.06,126.96,7.8763]
[1720138207417,119.7023,127.06,126.97,7.8755]
[1720138207624,100.0,127.0,126.93,7.8777]
[1720138207816,100.0,127.04,126.9,30.8243]
[1720138208017,100.0,127.05,126.91,59.397]
[1720138208224,31.552114,127.06,126.92,47.43]
[1720138208527,31.552114,127.06,126.95,13.2033]
[1720138208825,100.1,127.09,126.96,20.0]
[1720138209028,100.1,127.09,127.02,7.8723]
[1720138209207,100.1,127.09,127.01,7.8731]
[1720138209519,100.1,127.09,126.96,20.0]
[1720138209716,100.0,127.05,126.95,13.2033]
[1720138209917,100.0,127.05,126.96,7.8763]
[1720138209918,7.8716,127.04,126.96,7.8763]
[1720138210099,100.1,127.09,126.96,47.43]
[1720138210300,100.1,127.09,126.98,47.43]
[1720138210499,100.0,127.15,127.0,86.22]
[1720138210712,100.0,127.24,127.09,12.5197]
[1720138210916,31.511318,127.24,127.15,27.5254]
[1720138211123,100.0,127.23,127.15,19.6611]
[1720138211326,7.8606,127.22,127.1,19.6685]